bitfinex-derivatives/quotes_ETHF0:USTF0_20250803
["timestamp","ask_amount","ask_price","bid_price","bid_amount"]
[1754233384127,1.445,3463.8,3463.7,22.4837]
[1754233384326,2.6099,3463.8,3463.7,22.4837]
[1754233384526,2.6099,3463.8,3463.7,21.1305]
[1754233384733,0.9038,3463.4,3463.3,2.60518]
[1754233385036,0.9038,3463.7,3463.6,1.63122]
[1754233385228,1.5817,3463.7,3463.6,22.10622]
[1754233385423,2.6099,3463.7,3463.6,21.5288]
[1754233385628,2.6099,3463.7,3463.6,22.5027]
[1754233385928,1.0313,3463.7,3463.6,22.5037]
[1754233386129,0.3759,3463.7,3463.6,22.5037]
[1754233386329,0.3534,3463.7,3463.6,20.474]
[1754233386536,2.6099,3463.7,3463.6,22.054]
[1754233386935,2.6099,3463.7,3463.6,21.5278]
[1754233387238,2.6099,3463.7,3463.6,21.5238]
[1754233387427,2.6099,3463.7,3463.6,20.466]
[1754233388128,1.0916,3463.6,3463.2,0.5775]
[1754233388327,2.6099,3463.3,3463.2,0.5775]
[1754233388530,2.6099,3463.3,3463.2,23.0752]
[1754233388830,2.6099,3463.8,3463.7,2.0277]
[1754233389023,2.6099,3463.8,3463.7,22.4957]
[1754233389551,0.9038,3463.8,3463.7,22.4957]
[1754233389834,0.5504,3463.8,3463.7,22.4957]
[1754233390226,2.6099,3463.8,3463.7,2.0277]
[1754233390426,2.6099,3463.8,3463.7,22.4937]
[1754233390626,1.2058,3463.8,3463.7,22.4937]
[1754233390833,0.5504,3463.8,3463.7,22.7885]
[1754233391133,2.0595,3464.1,3464.0,2.0277]
[1754233391334,2.0595,3464.1,3464.0,22.4917]
[1754233391633,2.6099,3464.1,3464.0,20.464]
[1754233391832,1.60866,3464.1,3463.6,1.55133]
[1754233392038,2.6099,3463.7,3463.6,0.57743]
[1754233392238,2.6099,3463.7,3463.6,21.03143]
[1754233392637,2.6099,3463.7,3463.6,20.454]
[1754233392835,2.6099,3463.7,3463.6,20.8015]
[1754233393035,2.6099,3463.7,3463.6,21.2492]
[1754233393430,1.0313,3463.7,3463.4,1.10367]
[1754233393738,1.0313,3463.7,3463.6,20.448]
[1754233394036,1.0313,3463.7,3463.6,20.445]
[1754233394236,2.0623,3463.7,3463.6,20.445]
[1754233394432,2.0623,3463.7,3463.6,22.4619]
[1754233394740,5.44409407,3464.7,3464.0,1.0548]
[1754233394741,1.0128,3464.1,3464.0,1.0548]
[1754233394932,2.6044,3464.1,3464.0,22.4619]
[1754233395533,2.6044,3464.1,3464.0,21.4998]
[1754233396441,2.6044,3464.1,3464.0,21.4918]
[1754233396941,2.6044,3464.1,3464.0,2.0169]
[1754233397139,2.6044,3464.1,3464.0,22.4499]
[1754233397347,2.6044,3464.1,3464.0,2.0169]
[1754233397541,2.1373,3464.1,3464.0,22.4409]
[1754233397745,1.5734,3464.1,3464.0,22.4409]
[1754233397946,0.9083,3464.1,3464.0,22.4409]
[1754233398642,4.7812,3464.4,3464.3,0.6822]
[1754233398949,5.8122,3464.4,3464.3,22.4389]
[1754233399351,2.6044,3464.4,3464.3,22.4389]
[1754233400245,1.0277,3464.6,3464.3,20.427]
[1754233400451,2.6044,3464.4,3464.3,20.8771]
[1754233400645,0.9083,3464.4,3464.3,22.4439]
[1754233400845,3.2078,3464.8,3464.7,1.37876]
[1754233401051,0.5606,3465.8,3465.1,0.4501]
[1754233401246,1.02878815,3465.5,3465.4,4.74704]
[1754233401444,1.58938815,3465.5,3465.4,25.28704]
[1754233401639,1.02878815,3465.5,3465.4,25.57654]
[1754233401949,1.54318222,3465.7,3465.6,0.57711]
[1754233402147,1.0,3466.0,3465.8,0.57707]
[1754233402348,1.0,3466.0,3465.4,3.2078]
[1754233402349,0.5639,3465.5,3465.4,3.2078]
[1754233402656,1.5916,3465.5,3465.4,23.7448]
[1754233402857,0.5606,3465.5,3465.4,24.2568]
[1754233403156,0.5606,3465.7,3465.6,0.512]
[1754233403559,1.0,3466.0,3465.7,1.08909]
[1754233403757,1.0,3466.0,3465.9,3.7198]
[1754233403956,1.0,3466.0,3465.9,24.2758]
[1754233404255,1.5606,3466.0,3465.9,24.2758]
[1754233406150,1.5606,3466.0,3465.9,4.0915]
[1754233406459,2.6044,3465.6,3465.5,3.5795]
[1754233406660,2.6044,3465.6,3465.5,24.1115]
[1754233406860,1.5916,3465.6,3465.5,23.7418]
[1754233407052,1.5916,3465.6,3465.5,24.2538]
[1754233408455,1.1245,3465.6,3465.5,23.7418]
[1754233408662,1.5916,3465.6,3465.5,23.7418]
[1754233409458,1.5916,3465.6,3465.5,20.534]
[1754233410365,1.5916,3465.6,3465.5,21.046]
[1754233410563,0.4671,3465.9,3465.6,0.57711]
[1754233410764,1.0,3466.0,3465.8,0.512]
[1754233410964,2.031,3466.0,3465.9,20.531]
[1754233411267,3.6044,3466.0,3465.9,20.531]
[1754233411662,1.0,3466.0,3465.2,41.572]
[1754233411968,2.6044,3465.2,3465.1,3.2078]
[1754233412263,2.6044,3465.2,3465.1,23.7298]
[1754233412568,2.6044,3465.2,3465.1,24.6135]
[1754233412761,1.2272,3465.2,3465.1,24.6135]
[1754233412969,2.6044,3465.2,3465.1,24.6135]
[1754233413664,1.5916,3465.2,3465.1,24.2418]
[1754233413868,1.031,3465.6,3465.1,24.2418]
[1754233414063,0.5606,3465.5,3465.4,1.08912]
[1754233414269,1.5606,3466.0,3465.8,0.57707]
[1754233414570,1.5606,3466.0,3465.9,21.029]
[1754233414963,1.5606,3466.0,3465.5,23.7248]
[1754233415164,0.5606,3465.7,3465.5,20.514]
[1754233415365,1.5916,3465.6,3465.5,20.514]
[1754233417673,1.5606,3466.0,3465.5,21.026]
[1754233417867,1.5606,3466.0,3465.7,1.08909]
[1754233418070,1.0,3466.0,3465.9,1.08906]
[1754233418561,3.2078,3466.6,3466.5,0.57696]
[1754233418761,3.7684,3466.6,3466.5,21.10496]
[1754233418966,4.3323,3466.6,3466.5,21.10496]
[1754233419568,4.7994,3466.6,3466.5,20.528]
[1754233419768,1.5916,3466.5,3466.1,0.57702]
[1754233420067,0.5639,3466.9,3466.7,0.57692]
[1754233420277,3.2078,3467.0,3466.3,0.57699]
[1754233420574,0.57691,3466.8,3466.4,20.52]
[1754233420766,1.5916,3466.7,3466.4,20.52]
[1754233420968,1.5916,3466.6,3466.4,20.52]
[1754233421268,1.5916,3466.5,3466.4,20.52]
[1754233421570,1.1245,3466.4,3466.2,20.521]
[1754233421866,1.5916,3466.3,3466.2,20.521]
[1754233422073,0.4671,3466.3,3466.1,20.518]
[1754233422266,0.4671,3466.2,3465.9,0.57704]
[1754233422467,1.5916,3466.0,3465.7,0.57708]
[1754233422668,1.5916,3465.9,3465.8,20.513]
[1754233424474,1.5916,3465.9,3465.8,20.538]
[1754233426266,1.0702,3465.9,3465.6,3.2078]
[1754233426571,1.0257,3465.6,3465.4,0.57713]
[1754233426773,2.6695,3465.5,3465.4,0.57713]
[1754233426974,2.6695,3465.5,3465.4,0.61733]
[1754233427173,2.6695,3465.5,3465.4,0.68243]
[1754233427675,2.6695,3465.5,3465.4,21.16843]
[1754233428078,2.6695,3465.4,3465.3,41.551]
[1754233428274,2.6695,3465.4,3465.3,62.038]
[1754233428975,1.0702,3465.4,3464.9,3.78502]
[1754233429178,1.0702,3465.4,3465.0,20.479]
[1754233429377,1.0702,3465.4,3465.1,0.57719]
[1754233429685,2.6695,3465.3,3465.2,20.473]
[1754233431480,2.6695,3465.3,3465.2,20.5132]
[1754233431872,2.6695,3465.3,3465.2,20.4922]
[1754233432377,1.7124,3465.3,3465.2,20.4922]
[1754233432574,2.6695,3465.3,3465.2,21.13447]
[1754233434571,0.5736,3465.3,3465.2,21.13447]
[1754233434774,0.5736,3465.3,3465.2,21.15957]
[1754233435372,0.5736,3465.3,3465.2,21.13447]
[1754233439379,1.5224,3466.0,3465.9,0.57705]
[1754233439579,0.3836,3466.3,3466.2,0.0401]
[1754233439774,2.0959,3466.3,3466.2,20.402]
[1754233439976,2.0959,3466.4,3466.3,0.61719]
[1754233440179,2.0959,3466.4,3466.3,20.403]
[1754233440180,1.6438,3466.4,3466.3,20.403]
[1754233440683,2.6695,3466.4,3466.3,20.403]
[1754233441284,1.0702,3466.4,3466.3,20.401]
[1754233442077,2.6695,3466.4,3466.3,20.401]
[1754233443084,2.6695,3466.3,3466.2,0.577]
[1754233443272,0.5736,3466.6,3466.2,23.6258]
[1754233443476,1.0702,3466.3,3466.2,3.86511]
[1754233443676,2.6695,3466.3,3466.2,24.16181]
[1754233443876,2.2173,3466.3,3466.2,24.26711]
[1754233444083,2.6695,3466.3,3466.2,24.26711]
[1754233444483,1.5275,3466.3,3466.2,24.26711]
[1754233444685,0.5736,3466.3,3466.2,24.29221]
[1754233444878,0.5736,3466.6,3466.5,0.64206]
[1754233445078,0.954,3466.6,3466.5,0.68226]
[1754233445285,2.6695,3466.6,3466.5,21.05226]
[1754233445586,2.6695,3466.6,3466.5,0.68226]
[1754233445788,2.6695,3466.6,3466.5,21.04926]
[1754233446175,2.6695,3466.6,3466.5,0.68226]
[1754233446380,2.6695,3466.6,3466.5,20.362]
[1754233446584,2.6695,3466.6,3466.2,3.78479]
[1754233446788,1.0702,3466.4,3466.2,3.78479]
[1754233447083,2.6695,3466.3,3466.2,3.2078]
[1754233447291,1.0702,3466.3,3466.2,20.356]
[1754233447493,1.0702,3466.3,3466.2,20.4363]
[1754233447686,1.0702,3466.3,3466.2,20.4613]
[1754233447884,2.6695,3466.3,3466.2,20.4363]
[1754233448085,2.6695,3466.3,3466.2,0.0803]
[1754233448380,2.6695,3466.3,3466.2,20.359]
[1754233448587,1.0702,3466.3,3466.2,20.355]
[1754233449186,2.6695,3466.3,3466.2,20.355]
[1754233449388,2.6695,3466.3,3466.1,0.57702]
[1754233449597,2.6695,3466.3,3466.2,20.354]
[1754233450791,5.3038,3466.7,3466.6,0.68224]
[1754233451003,0.5736,3466.9,3466.8,0.6171]
[1754233451305,0.5736,3466.9,3466.8,0.6822]
[1754233451505,1.5275,3466.9,3466.8,0.6822]
[1754233451708,2.2173,3466.9,3466.8,0.6822]
[1754233451907,2.6695,3466.9,3466.8,0.6822]
[1754233452103,1.5275,3466.9,3466.8,0.6822]
[1754233452407,0.5736,3466.9,3466.8,3.9151]
[1754233454207,0.5736,3466.9,3466.8,3.89]
[1754233454408,1.1051,3466.9,3466.8,3.89]
[1754233455209,0.5736,3466.9,3466.8,3.89]
[1754233456511,0.5736,3466.9,3466.8,3.894]
[1754233456709,1.0517,3467.2,3467.1,0.59336]
[1754233456908,3.2078,3467.8,3467.1,20.3129]
[1754233457114,1.4758,3467.7,3467.6,0.0126]
[1754233457311,1.4758,3467.7,3467.6,20.3255]
[1754233457709,2.5275,3467.7,3467.6,20.3255]
[1754233458604,2.5275,3467.7,3467.6,20.3216]
[1754233459713,2.5275,3467.7,3467.6,20.3255]
[1754233460108,2.0722,3467.7,3467.6,20.3255]
[1754233460309,2.5275,3467.7,3467.6,20.3255]
[1754233460509,0.3683,3467.5,3467.4,0.57681]
[1754233460716,2.5275,3467.5,3467.4,20.86281]
[1754233460917,2.5275,3467.5,3467.4,20.86921]
[1754233461209,2.5275,3467.5,3467.4,20.87541]
[1754233461416,2.5275,3467.5,3467.4,20.87931]
[1754233461613,2.5275,3467.5,3467.4,20.87631]
[1754233461812,2.5275,3467.5,3467.4,20.277]
[1754233463307,2.5275,3467.4,3467.3,3.2078]
[1754233463512,2.5275,3467.4,3467.3,23.4838]
[1754233463712,2.5275,3466.9,3466.8,44.7488]
[1754233463907,1.4758,3467.2,3467.1,0.0126]
[1754233464107,1.4758,3467.2,3467.1,20.2915]
[1754233464618,2.5275,3467.2,3467.1,20.2915]
[1754233464813,2.5275,3467.2,3466.8,3.7847]
[1754233465020,1.0205,3466.9,3466.4,3.2078]
[1754233465322,2.5275,3466.8,3466.7,0.59342]
[1754233467217,0.5202,3466.8,3466.7,0.59342]
[1754233467520,1.0517,3467.1,3467.0,0.59337]
[1754233467716,1.0517,3467.1,3467.0,24.06417]
[1754233468221,1.0517,3467.4,3467.3,0.58942]
[1754233468416,1.0517,3467.4,3467.3,20.85332]
[1754233468721,2.5275,3467.4,3467.3,20.85332]
[1754233468915,2.5275,3467.4,3467.3,20.84942]
[1754233469511,1.0517,3467.3,3467.0,3.78467]
[1754233469719,2.5275,3467.1,3467.0,3.2078]
[1754233469917,1.2333,3466.7,3466.6,3.78474]
[1754233470118,2.5275,3466.7,3466.6,24.03974]
[1754233470318,2.5275,3466.7,3466.6,3.78474]
[1754233470521,2.5275,3466.7,3466.6,23.4678]
[1754233471121,2.5275,3466.7,3466.6,3.2078]
[1754233471423,2.5275,3466.7,3466.6,23.4678]
[1754233471622,3.2078,3467.2,3466.2,44.7408]
[1754233471623,1.507,3466.6,3466.2,44.7408]
[1754233471920,2.5275,3466.3,3465.9,0.57704]
[1754233472115,0.6522,3466.1,3465.9,0.57704]
[1754233472315,1.6277,3466.1,3466.0,21.1484]
[1754233472616,1.6277,3466.1,3465.7,3.78488]
[1754233472617,0.6522,3466.1,3465.7,3.78488]
[1754233472817,0.6522,3465.8,3465.7,4.12618]
[1754233473019,1.6277,3465.8,3465.7,24.39018]
[1754233473426,1.6277,3465.8,3465.7,4.0862]
[1754233473624,1.6277,3465.8,3465.7,23.4728]
[1754233474221,1.6277,3465.8,3465.7,24.0099]
[1754233474723,1.6277,3465.8,3465.7,3.7449]
[1754233474925,1.6277,3465.8,3465.7,24.0259]
[1754233476318,1.6277,3465.8,3465.7,24.0199]
[1754233476924,1.6277,3465.8,3465.7,21.1534]
[1754233479826,1.6277,3465.8,3465.7,0.8784]
[1754233480027,1.6277,3465.8,3465.7,20.5943]
[1754233480226,1.6277,3465.8,3465.7,21.1314]
[1754233480624,1.6277,3465.8,3465.7,0.8784]
[1754233480826,0.5202,3466.2,3466.1,1.46181]
[1754233481026,0.5202,3466.2,3466.1,21.69981]
[1754233481328,1.6277,3466.2,3466.1,1.45541]
[1754233481626,1.6277,3466.2,3466.1,21.69541]
[1754233482023,1.6277,3466.2,3466.1,21.1184]
[1754233482620,1.6277,3466.2,3466.1,21.1248]
[1754233483320,1.6277,3466.2,3466.1,0.8784]
[1754233483515,1.6277,3466.2,3466.1,21.1194]
[1754233483826,1.6614,3466.2,3466.1,21.1194]
[1754233484226,1.6614,3466.2,3466.1,0.8784]
[1754233484618,1.6614,3466.2,3466.1,21.1004]
[1754233484823,1.6614,3466.2,3466.1,21.1068]
[1754233485023,1.6484,3466.2,3466.1,21.1068]
[1754233485224,1.6277,3466.2,3466.1,21.1068]
[1754233486330,1.6484,3466.2,3466.1,21.1068]
[1754233486626,1.6277,3466.2,3466.1,21.1068]
[1754233487631,4.3812,3466.8,3466.7,1.52872]
[1754233487823,4.3812,3466.8,3466.7,21.77092]
[1754233488131,4.9484,3466.8,3466.7,21.77092]
[1754233488332,1.7406,3466.8,3466.7,21.194]
[1754233488529,1.7406,3466.8,3466.7,21.1668]
[1754233488823,1.7406,3466.8,3466.5,3.2078]
[1754233489134,1.7406,3466.7,3466.6,20.201]
[1754233489332,1.7406,3466.7,3466.6,20.7729]
[1754233489537,1.7406,3466.7,3466.6,21.1528]
[1754233491928,0.5335,3466.7,3466.6,21.18]
[1754233492232,0.5335,3467.1,3467.0,1.55586]
[1754233492428,0.5335,3467.1,3467.0,21.16]
[1754233492732,1.2196,3467.1,3467.0,21.16]
[1754233492927,0.9156,3467.2,3467.1,0.98396]
[1754233493235,1.2196,3467.2,3467.1,0.4071]
[1754233493530,1.2196,3467.2,3467.1,0.979]
[1754233493731,1.7069,3467.2,3467.1,0.979]
[1754233494129,1.7276,3467.2,3467.1,0.979]
[1754233494327,1.7406,3467.2,3467.1,0.979]
[1754233495028,1.7276,3467.2,3467.1,21.1318]
[1754233495222,1.7406,3467.2,3467.1,21.1318]
[1754233495826,1.7406,3467.2,3467.1,21.1208]
[1754233498028,1.7276,3467.2,3467.1,21.148]
[1754233498237,0.9156,3467.2,3467.1,21.148]
[1754233498427,0.5335,3467.2,3467.1,21.148]
[1754233498627,0.9156,3467.2,3467.1,21.148]
[1754233498828,0.5335,3467.2,3467.1,21.165]
[1754233499027,0.5335,3467.2,3467.1,21.148]
[1754233499335,1.2196,3467.2,3467.1,21.148]
[1754233501131,0.5335,3467.2,3467.1,21.148]
[1754233501331,1.1734,3467.7,3467.6,1.55577]
[1754233501535,1.1734,3467.7,3467.6,21.69177]
[1754233501731,1.2196,3467.7,3467.6,21.115]
[1754233502037,1.7069,3467.7,3467.6,21.115]
[1754233502431,1.0208,3467.6,3467.1,0.57686]
[1754233502628,0.7198,3467.4,3467.3,0.95672]
[1754233502838,1.7406,3467.4,3467.3,0.95672]
[1754233503038,1.7276,3467.4,3467.3,0.98392]
[1754233503242,1.7406,3467.4,3467.3,0.979]
[1754233504338,1.7406,3467.4,3467.3,21.0868]
[1754233504727,0.7068,3467.4,3467.1,0.5719]
[1754233504928,1.7406,3466.8,3466.1,0.5719]
[1754233505137,0.7068,3466.1,3466.0,3.2078]
[1754233505437,1.7406,3466.1,3466.0,3.2078]
[1754233506030,1.7406,3466.1,3466.0,23.9197]
[1754233506336,0.57704,3466.0,3465.7,0.5719]
[1754233506542,1.7406,3465.6,3465.5,3.7797]
[1754233506734,1.7406,3465.6,3465.5,20.136]
[1754233508131,1.7406,3465.6,3465.5,21.0878]
[1754233508838,1.7406,3465.6,3465.5,20.136]
[1754233509659,2.31772,3465.6,3465.2,0.5719]
[1754233509841,0.7068,3465.4,3465.3,21.0848]
[1754233510040,1.7406,3465.4,3465.3,21.0798]
[1754233510239,0.6861,3464.6,3464.5,0.5991]
[1754233510444,0.6861,3464.6,3464.5,21.104]
[1754233510445,1.7069,3464.6,3464.5,21.104]
[1754233511141,1.7069,3464.6,3464.5,21.68129]
[1754233511641,1.7069,3465.1,3465.0,0.4071]
[1754233511841,1.7069,3465.1,3465.0,0.979]
[1754233512139,1.7406,3465.1,3465.0,0.979]
[1754233512339,1.7406,3465.1,3465.0,0.9518]
[1754233513639,1.7276,3465.1,3465.0,0.9518]
[1754233514837,1.7069,3465.1,3465.0,0.9518]
[1754233516542,0.5335,3465.1,3465.0,0.9518]
[1754233517043,1.6709,3465.1,3465.0,0.9518]
[1754233518036,1.1374,3465.0,3464.9,20.4745]
[1754233518238,0.8586,3465.0,3464.9,21.0061]
[1754233518438,1.1681,3465.0,3464.9,21.0061]
[1754233518645,1.1681,3465.0,3464.9,21.0041]
[1754233518841,1.6507,3465.0,3464.9,21.0041]
[1754233520446,1.6507,3465.0,3463.8,1.44351]
[1754233520447,1.6507,3464.5,3463.6,3.2078]
[1754233520743,2.5381,3463.7,3463.6,1.0591]
[1754233520949,2.0248,3463.7,3463.6,2.0654]
[1754233521350,2.5381,3463.7,3463.6,2.0654]
[1754233522550,2.5381,3463.7,3463.6,2.597]
[1754233525850,1.9915,3463.7,3463.3,0.57748]
[1754233526149,2.5381,3463.6,3463.5,1.5907]
[1754233526347,2.5381,3463.6,3463.5,2.1193]
[1754233526749,2.5381,3463.6,3463.5,2.597]
[1754233529948,3.2078,3464.4,3464.3,3.17432]
[1754233530147,3.2078,3464.4,3463.6,3.7364]
[1754233530349,1.5422,3464.0,3463.9,2.16809]
[1754233530556,0.9956,3464.0,3463.9,0.731]
[1754233531147,2.5381,3464.0,3463.9,0.731]
[1754233531452,2.5381,3464.0,3463.9,2.597]
[1754233532249,0.9959,3464.3,3464.0,0.57737]
[1754233532442,1.9915,3464.3,3464.2,2.597]
[1754233532649,2.5381,3464.3,3464.2,2.597]
[1754233532850,2.5381,3464.3,3464.2,1.5907]
[1754233533045,0.9956,3464.0,3463.6,0.57744]
[1754233533252,2.5381,3463.9,3463.8,1.0591]
[1754233533953,5.7459,3463.9,3463.8,1.0591]
[1754233534556,5.7459,3463.9,3463.8,1.5907]
[1754233536159,4.2034,3464.3,3464.2,2.597]
[1754233536345,3.2078,3464.8,3464.7,0.3685]
[1754233536551,0.92247,3465.3,3465.2,1.0591]
[1754233536751,3.38323498,3465.3,3465.2,2.1193]
[1754233536961,0.9956,3465.1,3465.0,1.2626]
[1754233537161,3.35299413,3465.1,3465.0,2.1193]
[1754233537356,6.6204352,3465.1,3465.0,2.1193]
[1754233537657,5.80554107,3465.1,3465.0,2.1193]
[1754233537954,2.5381,3464.8,3464.7,3.17425]
[1754233538153,3.26744107,3465.3,3464.7,3.17425]
[1754233538348,1.1687,3465.2,3465.1,1.0591]
[1754233538545,2.5381,3465.2,3465.1,2.597]
[1754233539357,2.5381,3465.2,3465.1,1.5907]
[1754233539953,2.5381,3464.9,3464.8,1.2596]
[1754233540266,5.80554107,3464.9,3464.8,0.731]
[1754233540559,2.5381,3464.7,3464.6,1.2626]
[1754233540855,2.5381,3464.7,3464.6,1.5907]
[1754233541062,2.5381,3464.7,3464.6,2.597]
[1754233541564,0.6548,3464.7,3464.6,2.597]
[1754233541754,0.5466,3465.1,3465.0,2.597]
[1754233541755,1.684,3465.1,3465.0,2.597]
[1754233541955,1.1374,3465.1,3465.0,2.597]
[1754233542363,0.6548,3465.1,3465.0,2.597]
[1754233542860,1.9915,3465.1,3465.0,2.597]
[1754233543061,0.9956,3465.1,3465.0,2.597]
[1754233543251,1.4782,3465.1,3465.0,2.597]
[1754233543461,2.5381,3465.1,3465.0,2.597]
[1754233543659,2.5381,3465.1,3465.0,1.5907]
[1754233543858,1.32112,3464.4,3464.3,1.2944]
[1754233544056,4.88806107,3464.4,3463.9,0.57738]
[1754233544257,4.88806107,3464.4,3464.0,1.5664]
[1754233544466,4.88806107,3464.4,3464.0,1.0044]
[1754233544661,1.0433,3464.2,3464.1,2.15]
[1754233544858,2.5736,3464.2,3464.1,2.15]
[1754233545058,2.5736,3464.2,3464.1,2.5988]
[1754233545460,0.6719,3464.2,3464.1,2.5988]
[1754233545662,4.7774,3464.5,3464.4,2.5988]
[1754233545963,4.2511,3464.5,3464.4,2.5988]
[1754233546158,9.04884107,3464.5,3464.4,2.5988]
[1754233546364,5.7814,3464.5,3464.4,2.5988]
[1754233547865,2.5736,3464.5,3464.4,2.5988]
[1754233548364,0.6719,3464.5,3464.4,2.5988]
[1754233548564,2.60778,3464.6,3464.5,2.5988]
[1754233548766,2.68998,3464.6,3464.5,2.5988]
[1754233549068,2.1127,3464.7,3464.6,2.5988]
[1754233549270,2.5736,3464.7,3464.6,2.5988]
[1754233549963,1.0433,3464.3,3464.2,1.85]
[1754233550164,2.5736,3464.3,3464.2,2.5988]
[1754233551567,0.5431,3464.9,3464.7,0.3734]
[1754233551774,0.3724,3465.0,3464.9,1.0324]
[1754233552174,2.5736,3465.0,3464.9,1.0324]
[1754233552378,2.5736,3465.0,3464.9,1.5944]
[1754233552579,2.5736,3465.0,3464.9,0.7324]
[1754233552782,0.6709,3464.5,3464.4,1.221]
[1754233553082,1.5042,3464.5,3464.4,2.5988]
[1754233553277,2.0305,3464.5,3464.4,2.5988]
[1754233553578,2.5736,3464.5,3464.4,2.5988]
[1754233553976,2.0305,3464.5,3464.4,2.5988]
[1754233554479,1.5042,3464.5,3464.4,2.5988]
[1754233554679,1.0433,3464.5,3464.4,2.5988]
[1754233554874,0.6719,3464.5,3464.4,2.5988]
[1754233555775,3.2078,3465.0,3464.4,2.5988]
[1754233555976,5.2383,3465.4,3465.3,2.5988]
[1754233556576,5.7814,3465.4,3465.3,2.5988]
[1754233557783,2.5736,3464.9,3464.8,2.5988]
[1754233558281,2.5736,3464.7,3464.6,4.1432]
[1754233558978,2.5736,3464.7,3464.6,5.8066]
[1754233560478,2.5736,3464.7,3464.6,3.2078]
[1754233560978,3.15086,3464.7,3464.3,2.14372]
[1754233561180,1.62056,3464.7,3464.6,0.7324]
[1754233561383,1.62056,3464.7,3464.6,1.2944]
[1754233561686,2.5736,3464.7,3464.6,2.15]
[1754233561882,2.5736,3464.7,3464.6,2.5988]
[1754233563185,2.5736,3464.7,3464.6,1.5944]
[1754233563382,1.0433,3464.4,3464.3,2.0368]
[1754233563589,2.5736,3464.4,3464.3,2.0368]
[1754233564291,2.0305,3464.6,3464.5,1.0324]
[1754233564593,2.5736,3464.6,3464.5,2.5988]
[1754233565089,0.5263,3464.2,3463.7,21.7104]
[1754233565287,3.2078,3464.3,3463.7,20.144]
[1754233565490,2.5736,3464.2,3464.1,0.7324]
[1754233565988,2.5736,3464.2,3464.1,1.2944]
[1754233565989,3.15094,3464.2,3464.1,1.2944]
[1754233566378,1.10368,3464.0,3463.6,3.78523]
[1754233566578,3.15103,3463.7,3463.6,2.5988]
[1754233567083,3.15103,3463.7,3463.0,0.899]
[1754233567084,0.3714,3463.1,3463.0,0.899]
[1754233567387,3.2078,3463.4,3463.1,0.57752]
[1754233567592,0.57743,3463.7,3463.3,2.0432]
[1754233567890,2.60797,3463.5,3463.4,2.5988]
[1754233568089,6.35887,3463.5,3463.4,2.5988]
[1754233568687,1.5042,3463.1,3463.0,2.9358]
[1754233568885,2.5736,3463.1,3463.0,2.9358]
[1754233569281,2.5736,3463.1,3463.0,3.4978]
[1754233569483,1.5042,3463.1,3463.0,3.4978]
[1754233570185,0.3724,3463.1,3463.0,3.4978]
[1754233570390,2.5736,3463.1,3463.0,3.4978]
[1754233570593,5.7814,3463.1,3463.0,0.899]
[1754233571493,5.7814,3463.1,3462.9,0.54677608]
[1754233571494,3.15114,3463.0,3462.9,0.54677608]
[1754233572091,1.62096,3462.3,3462.2,1.5944]
[1754233572292,3.15126,3462.3,3462.2,2.5988]
[1754233572589,2.5736,3462.3,3462.2,2.5988]
[1754233574988,3.15126,3462.3,3461.7,1.5478]
[1754233575189,3.16481,3462.0,3461.9,2.5411]
[1754233575690,3.16481,3462.0,3461.5,3.78558]
[1754233575691,2.5871,3461.9,3461.8,0.9933]
[1754233575992,2.0434,3461.9,3461.8,2.5411]
[1754233576392,0.57769,3462.1,3461.8,2.5411]
[1754233576590,0.57769,3462.1,3461.5,3.78558]
[1754233576591,1.2374,3462.0,3461.9,2.5411]
[1754233576787,2.5871,3462.0,3461.9,2.5411]
[1754233577391,0.57772,3461.9,3461.5,4.88889]
[1754233577596,1.0171,3461.7,3461.6,2.5411]
[1754233577890,2.5871,3461.7,3461.6,2.5411]
[1754233578193,2.0434,3461.7,3461.6,2.5411]
[1754233578402,1.0171,3461.7,3461.6,2.5411]
[1754233579692,1.5503,3461.7,3461.6,2.5411]
[1754233581495,2.5871,3461.7,3461.6,2.5411]
[1754233582193,0.7042,3461.4,3461.3,0.315]
[1754233582394,1.0171,3460.4,3460.3,3.8541]
[1754233582596,2.437,3460.4,3460.3,4.2986]
[1754233582794,0.57797,3460.5,3460.0,0.72595009]
[1754233582795,0.7042,3460.1,3460.0,0.18815009]
[1754233582991,2.437,3460.1,3460.0,0.18815009]
[1754233583198,2.437,3460.1,3460.0,0.48735009]
[1754233583497,5.6448,3460.1,3460.0,0.18815009]
[1754233583893,1.59508,3460.4,3460.3,0.9933]
[1754233584194,1.59508,3460.4,3460.0,0.18815009]
[1754233584195,3.2078,3460.5,3458.7,0.5378]
[1754233584392,3.2078,3461.2,3460.6,0.5378]
[1754233584694,3.2078,3461.2,3460.9,0.5655]
[1754233584896,0.8762,3461.7,3461.1,0.5655]
[1754233585098,1.45397,3461.7,3461.6,0.9823]
[1754233585392,0.57776,3461.7,3461.6,20.377]
[1754233585598,0.57794,3460.6,3460.5,3.2078]
[1754233585794,0.57792,3460.7,3460.2,20.403]
[1754233585997,0.5332,3460.7,3460.3,2.12579]
[1754233586197,3.2078,3461.8,3461.1,0.57784]
[1754233586400,1.45404,3461.2,3461.1,20.414]
[1754233586703,1.45404,3461.2,3460.7,0.5378]